{"text_format":"3","workbook":"xlsx","n_sheets":7,"sheets":["Pondělí","Úterý","Středa","Čtvrtek","Pátek","Sobota","Neděle"],"not_rendered":{"defined_names":24},"read":"whole","date_system":"1900"}

{"sheet":"Pondělí","index":0,"n_rows":10,"n_cols":13,"rows_kept":10,"merged":[[1,1,2,1],[1,2,1,10],[1,11,1,12],[2,2,2,10],[2,11,2,12]]}
[null,"PLÁN SMĚN"]
[null,"PONDĚLÍ","Na týden od: ",{"$nulls":8},"DATUM"]
[null,null,"Název oddělení: ",{"$nulls":8},"ODDĚLENÍ"]
[null,"Jméno zaměstnance","7:00","8:00","9:00","10:00","11:00","12:00","13:00","14:00","15:00","Nemoc?","CELKEM"]
[null,"Karel F.","vedoucí","vedoucí","vedoucí","vedoucí","vedoucí","vedoucí","vedoucí","vedoucí","vedoucí",null,{"$f":"IFERROR(COUNTIF(Pondělí[[#This Row],[7:00]:[15:00]],\"*\"),\"\")","v":9}]
[null,"Tomáš Z.",null,"pokladní","pokladní","pokladní","pokladní",{"$nulls":5},{"$f":"IFERROR(COUNTIF(Pondělí[[#This Row],[7:00]:[15:00]],\"*\"),\"\")","v":4}]
[null,"Jakub S.",null,"recepční","recepční","recepční","recepční ","recepční","recepční","recepční",null,null,{"$f":"IFERROR(COUNTIF(Pondělí[[#This Row],[7:00]:[15:00]],\"*\"),\"\")","v":7}]
[null,"Jan M.",null,"recepční","recepční","recepční","recepční ","recepční","recepční","recepční",null,null,{"$f":"IFERROR(COUNTIF(Pondělí[[#This Row],[7:00]:[15:00]],\"*\"),\"\")","v":7}]
[null,"Stanislav P.",{"$nulls":10},{"$f":"IFERROR(COUNTIF(Pondělí[[#This Row],[7:00]:[15:00]],\"*\"),\"\")","v":0}]
[null,"Tereza A.",{"$nulls":5},"pokladní","pokladní","pokladní","pokladní",null,{"$f":"IFERROR(COUNTIF(Pondělí[[#This Row],[7:00]:[15:00]],\"*\"),\"\")","v":4}]

{"sheet":"Úterý","index":1,"n_rows":10,"n_cols":13,"rows_kept":10,"merged":[[1,1,2,1],[1,2,1,10],[1,11,1,12],[2,2,2,10],[2,11,2,12]]}
[null,{"$f":"Nadpis_PLÁN_SMĚN","v":"PLÁN SMĚN"}]
[null,"ÚTERÝ","Na týden od: ",{"$nulls":8},{"$f":"DATUM","v":"DATUM"}]
[null,null,"Název oddělení: ",{"$nulls":8},{"$f":"ODDĚLENÍ","v":"ODDĚLENÍ"}]
[null,"Jméno zaměstnance","7:00","8:00","9:00","10:00","11:00","12:00","13:00","14:00","15:00","Nemoc?","CELKEM"]
[null,"Karel F.","vedoucí","vedoucí","vedoucí","vedoucí","vedoucí","vedoucí","vedoucí","vedoucí","vedoucí",null,{"$f":"IFERROR(COUNTIF(Úterý[[#This Row],[7:00]:[15:00]],\"*\"),\"\")","v":9}]
[null,"Tomáš Z.",null,"pokladní","pokladní","pokladní","pokladní",{"$nulls":5},{"$f":"IFERROR(COUNTIF(Úterý[[#This Row],[7:00]:[15:00]],\"*\"),\"\")","v":4}]
[null,"Jakub S.",null,"recepční","recepční","recepční","recepční ","recepční","recepční","recepční",null,null,{"$f":"IFERROR(COUNTIF(Úterý[[#This Row],[7:00]:[15:00]],\"*\"),\"\")","v":7}]
[null,"Jan M.",null,"recepční","recepční","recepční","recepční ","recepční","recepční","recepční",null,null,{"$f":"IFERROR(COUNTIF(Úterý[[#This Row],[7:00]:[15:00]],\"*\"),\"\")","v":7}]
[null,"Stanislav P.",{"$nulls":9},"Nemoc",{"$f":"IFERROR(COUNTIF(Úterý[[#This Row],[7:00]:[15:00]],\"*\"),\"\")","v":0}]
[null,"Tereza A.",{"$nulls":5},"pokladní","pokladní","pokladní","pokladní",null,{"$f":"IFERROR(COUNTIF(Úterý[[#This Row],[7:00]:[15:00]],\"*\"),\"\")","v":4}]

{"sheet":"Středa","index":2,"n_rows":10,"n_cols":13,"rows_kept":10,"merged":[[1,1,2,1],[1,2,1,10],[1,11,1,12],[2,2,2,10],[2,11,2,12]]}
[null,{"$f":"Nadpis_PLÁN_SMĚN","v":"PLÁN SMĚN"}]
[null,"STŘEDA","Na týden od: ",{"$nulls":8},{"$f":"DATUM","v":"DATUM"}]
[null,null,"Název oddělení: ",{"$nulls":8},{"$f":"ODDĚLENÍ","v":"ODDĚLENÍ"}]
[null,"Jméno zaměstnance","7:00","8:00","9:00","10:00","11:00","12:00","13:00","14:00","15:00","Nemoc?","CELKEM"]
[null,"Karel F.","vedoucí","vedoucí","vedoucí","vedoucí","vedoucí","vedoucí","vedoucí","vedoucí","vedoucí",null,{"$f":"IFERROR(COUNTIF(Středa[[#This Row],[7:00]:[15:00]],\"*\"),\"\")","v":9}]
[null,"Tomáš Z.",null,"pokladní","pokladní","pokladní","pokladní",{"$nulls":5},{"$f":"IFERROR(COUNTIF(Středa[[#This Row],[7:00]:[15:00]],\"*\"),\"\")","v":4}]
[null,"Jakub S.",null,"recepční","recepční","recepční","recepční ","recepční","recepční","recepční",null,null,{"$f":"IFERROR(COUNTIF(Středa[[#This Row],[7:00]:[15:00]],\"*\"),\"\")","v":7}]
[null,"Jan M.",null,"recepční","recepční","recepční","recepční ","recepční","recepční","recepční",null,null,{"$f":"IFERROR(COUNTIF(Středa[[#This Row],[7:00]:[15:00]],\"*\"),\"\")","v":7}]
[null,"Stanislav P.",{"$nulls":9},"Nemoc",{"$f":"IFERROR(COUNTIF(Středa[[#This Row],[7:00]:[15:00]],\"*\"),\"\")","v":0}]
[null,"Tereza A.",{"$nulls":5},"pokladní","pokladní","pokladní","pokladní",null,{"$f":"IFERROR(COUNTIF(Středa[[#This Row],[7:00]:[15:00]],\"*\"),\"\")","v":4}]

{"sheet":"Čtvrtek","index":3,"n_rows":10,"n_cols":13,"rows_kept":10,"merged":[[1,1,2,1],[1,2,1,10],[1,11,1,12],[2,2,2,10],[2,11,2,12]]}
[null,{"$f":"Nadpis_PLÁN_SMĚN","v":"PLÁN SMĚN"}]
[null,"ČTVRTEK","Na týden od: ",{"$nulls":8},{"$f":"DATUM","v":"DATUM"}]
[null,null,"Název oddělení: ",{"$nulls":8},{"$f":"ODDĚLENÍ","v":"ODDĚLENÍ"}]
[null,"Jméno zaměstnance","7:00","8:00","9:00","10:00","11:00","12:00","13:00","14:00","15:00","Nemoc?","CELKEM"]
[null,"Karel F.","vedoucí","vedoucí","vedoucí","vedoucí","vedoucí","vedoucí","vedoucí","vedoucí","vedoucí",null,{"$f":"IFERROR(COUNTIF(Čtvrtek[[#This Row],[7:00]:[15:00]],\"*\"),\"\")","v":9}]
[null,"Tomáš Z.",null,"pokladní","pokladní","pokladní","pokladní",{"$nulls":5},{"$f":"IFERROR(COUNTIF(Čtvrtek[[#This Row],[7:00]:[15:00]],\"*\"),\"\")","v":4}]
[null,"Jakub S.",null,"recepční","recepční","recepční","recepční ","recepční","recepční","recepční",null,null,{"$f":"IFERROR(COUNTIF(Čtvrtek[[#This Row],[7:00]:[15:00]],\"*\"),\"\")","v":7}]
[null,"Jan M.",null,"recepční","recepční","recepční","recepční ","recepční","recepční","recepční",null,null,{"$f":"IFERROR(COUNTIF(Čtvrtek[[#This Row],[7:00]:[15:00]],\"*\"),\"\")","v":7}]
[null,"Stanislav P.",{"$nulls":9},"Nemoc",{"$f":"IFERROR(COUNTIF(Čtvrtek[[#This Row],[7:00]:[15:00]],\"*\"),\"\")","v":0}]
[null,"Tereza A.",{"$nulls":5},"pokladní","pokladní","pokladní","pokladní",null,{"$f":"IFERROR(COUNTIF(Čtvrtek[[#This Row],[7:00]:[15:00]],\"*\"),\"\")","v":4}]

{"sheet":"Pátek","index":4,"n_rows":10,"n_cols":13,"rows_kept":10,"merged":[[1,1,2,1],[1,2,1,10],[1,11,1,12],[2,2,2,10],[2,11,2,12]]}
[null,{"$f":"Nadpis_PLÁN_SMĚN","v":"PLÁN SMĚN"}]
[null,"PÁTEK","Na týden od: ",{"$nulls":8},{"$f":"DATUM","v":"DATUM"}]
[null,null,"Název oddělení: ",{"$nulls":8},{"$f":"ODDĚLENÍ","v":"ODDĚLENÍ"}]
[null,"Jméno zaměstnance","7:00","8:00","9:00","10:00","11:00","12:00","13:00","14:00","15:00","Nemoc?","CELKEM"]
[null,"Karel F.","vedoucí","vedoucí","vedoucí","vedoucí","vedoucí","vedoucí","vedoucí","vedoucí","vedoucí",null,{"$f":"IFERROR(COUNTIF(Pátek[[#This Row],[7:00]:[15:00]],\"*\"),\"\")","v":9}]
[null,"Tomáš Z.",null,"pokladní","pokladní","pokladní","pokladní",{"$nulls":5},{"$f":"IFERROR(COUNTIF(Pátek[[#This Row],[7:00]:[15:00]],\"*\"),\"\")","v":4}]
[null,"Jakub S.",null,"recepční","recepční","recepční","recepční ","recepční","recepční","recepční",null,null,{"$f":"IFERROR(COUNTIF(Pátek[[#This Row],[7:00]:[15:00]],\"*\"),\"\")","v":7}]
[null,"Jan M.",null,"recepční","recepční","recepční","recepční ","recepční","recepční","recepční",null,null,{"$f":"IFERROR(COUNTIF(Pátek[[#This Row],[7:00]:[15:00]],\"*\"),\"\")","v":7}]
[null,"Stanislav P.",{"$nulls":9},"Nemoc",{"$f":"IFERROR(COUNTIF(Pátek[[#This Row],[7:00]:[15:00]],\"*\"),\"\")","v":0}]
[null,"Tereza A.",{"$nulls":5},"pokladní","pokladní","pokladní","pokladní",null,{"$f":"IFERROR(COUNTIF(Pátek[[#This Row],[7:00]:[15:00]],\"*\"),\"\")","v":4}]

{"sheet":"Sobota","index":5,"n_rows":10,"n_cols":13,"rows_kept":10,"merged":[[1,1,2,1],[1,2,1,10],[1,11,1,12],[2,2,2,10],[2,11,2,12]]}
[null,{"$f":"Nadpis_PLÁN_SMĚN","v":"PLÁN SMĚN"}]
[null,"SOBOTA","Na týden od: ",{"$nulls":8},{"$f":"DATUM","v":"DATUM"}]
[null,null,"Název oddělení: ",{"$nulls":8},{"$f":"ODDĚLENÍ","v":"ODDĚLENÍ"}]
[null,"Jméno zaměstnance","7:00","8:00","9:00","10:00","11:00","12:00","13:00","14:00","15:00","Nemoc?","CELKEM"]
[null,"Karel F.","vedoucí","vedoucí","vedoucí","vedoucí","vedoucí","vedoucí","vedoucí","vedoucí","vedoucí",null,{"$f":"IFERROR(COUNTIF(Sobota[[#This Row],[7:00]:[15:00]],\"*\"),\"\")","v":9}]
[null,"Tomáš Z.",null,"pokladní","pokladní","pokladní","pokladní",{"$nulls":5},{"$f":"IFERROR(COUNTIF(Sobota[[#This Row],[7:00]:[15:00]],\"*\"),\"\")","v":4}]
[null,"Jakub S.",null,"recepční","recepční","recepční","recepční ","recepční","recepční","recepční",null,null,{"$f":"IFERROR(COUNTIF(Sobota[[#This Row],[7:00]:[15:00]],\"*\"),\"\")","v":7}]
[null,"Jan M.",null,"recepční","recepční","recepční","recepční ","recepční","recepční","recepční",null,null,{"$f":"IFERROR(COUNTIF(Sobota[[#This Row],[7:00]:[15:00]],\"*\"),\"\")","v":7}]
[null,"Stanislav P.",{"$nulls":9},"Nemoc",{"$f":"IFERROR(COUNTIF(Sobota[[#This Row],[7:00]:[15:00]],\"*\"),\"\")","v":0}]
[null,"Tereza A.",{"$nulls":5},"pokladní","pokladní","pokladní","pokladní",null,{"$f":"IFERROR(COUNTIF(Sobota[[#This Row],[7:00]:[15:00]],\"*\"),\"\")","v":4}]

{"sheet":"Neděle","index":6,"n_rows":10,"n_cols":13,"rows_kept":10,"merged":[[1,1,2,1],[1,2,1,10],[1,11,1,12],[2,2,2,10],[2,11,2,12]]}
[null,{"$f":"Nadpis_PLÁN_SMĚN","v":"PLÁN SMĚN"}]
[null,"NEDĚLE","Na týden od: ",{"$nulls":8},{"$f":"DATUM","v":"DATUM"}]
[null,null,"Název oddělení: ",{"$nulls":8},{"$f":"ODDĚLENÍ","v":"ODDĚLENÍ"}]
[null,"Jméno zaměstnance","7:00","8:00","9:00","10:00","11:00","12:00","13:00","14:00","15:00","Nemoc?","CELKEM"]
[null,"Karel F.","vedoucí","vedoucí","vedoucí","vedoucí","vedoucí","vedoucí","vedoucí","vedoucí","vedoucí",null,{"$f":"IFERROR(COUNTIF(Neděle[[#This Row],[7:00]:[15:00]],\"*\"),\"\")","v":9}]
[null,"Tomáš Z.",null,"pokladní","pokladní","pokladní","pokladní",{"$nulls":5},{"$f":"IFERROR(COUNTIF(Neděle[[#This Row],[7:00]:[15:00]],\"*\"),\"\")","v":4}]
[null,"Jakub S.",null,"recepční","recepční","recepční","recepční ","recepční","recepční","recepční",null,null,{"$f":"IFERROR(COUNTIF(Neděle[[#This Row],[7:00]:[15:00]],\"*\"),\"\")","v":7}]
[null,"Jan M.",null,"recepční","recepční","recepční","recepční ","recepční","recepční","recepční",null,null,{"$f":"IFERROR(COUNTIF(Neděle[[#This Row],[7:00]:[15:00]],\"*\"),\"\")","v":7}]
[null,"Stanislav P.",{"$nulls":9},"Nemoc",{"$f":"IFERROR(COUNTIF(Neděle[[#This Row],[7:00]:[15:00]],\"*\"),\"\")","v":0}]
[null,"Tereza A.",{"$nulls":5},"pokladní","pokladní","pokladní","pokladní",null,{"$f":"IFERROR(COUNTIF(Neděle[[#This Row],[7:00]:[15:00]],\"*\"),\"\")","v":4}]